[Event "Titled Tuesday Blitz August 31 2021"]
[White "Piesik, Piotr"]
[Black "Tsaruk, Maksim"]
[WhiteFideId "1136194"]
[BlackFideId "13511173"]
[WhiteElo "2395"]
[BlackElo "2184"]
[Result "1-0"]
[Round "09"]
[TimeControl "180+1"]
[Date "2021.08.31"]
[WhiteClock "0:00:04"]
[BlackClock "0:00:01"]

1. Nf3 {[%clk 0:02:45]}  Nf6 {[%clk 0:02:59]} 2. g3 {[%clk 0:02:45]}  d5 {[%clk 0:03:00]} 3. Bg2 {[%clk 0:02:46]}  c6 {[%clk 0:02:59]} 4. O-O {[%clk 0:02:46]}  Bf5 {[%clk 0:03:00]} 5. d3 {[%clk 0:02:45]}  e6 {[%clk 0:03:00]} 6. Nbd2 {[%clk 0:02:46]}  Nbd7 {[%clk 0:02:59]} 7. Qe1 {[%clk 0:02:46]}  h6 {[%clk 0:02:58]} 8. e4 {[%clk 0:02:47]}  dxe4 {[%clk 0:02:55]} 9. dxe4 {[%clk 0:02:48]}  Bh7 {[%clk 0:02:55]} 10. Qe2 {[%clk 0:02:48]}  Be7 {[%clk 0:02:55]} 11. a4 {[%clk 0:02:49]}  a5 {[%clk 0:02:53]} 12. b3 {[%clk 0:02:49]}  O-O {[%clk 0:02:53]} 13. Bb2 {[%clk 0:02:49]}  Qc7 {[%clk 0:02:53]} 14. Rfd1 {[%clk 0:02:49]}  Rfd8 {[%clk 0:02:53]} 15. Ne1 {[%clk 0:02:50]}  Ne5 {[%clk 0:02:46]} 16. Nc4 {[%clk 0:02:47]}  Nxc4 {[%clk 0:02:33]} 17. Qxc4 {[%clk 0:02:48]}  Nd7 {[%clk 0:02:33]} 18. Qe2 {[%clk 0:02:42]}  Ne5 {[%clk 0:02:20]} 19. f4 {[%clk 0:02:41]}  Nd7 {[%clk 0:02:06]} 20. Nd3 {[%clk 0:02:40]}  Nc5 {[%clk 0:02:04]} 21. Ne5 {[%clk 0:02:31]}  Rxd1+ {[%clk 0:01:50]} 22. Rxd1 {[%clk 0:02:30]}  Rd8 {[%clk 0:01:50]} 23. Rxd8+ {[%clk 0:02:28]}  Qxd8 {[%clk 0:01:51]} 24. Bf3 {[%clk 0:02:25]}  Nd7 {[%clk 0:01:29]} 25. Nc4 {[%clk 0:02:23]}  Bc5+ {[%clk 0:01:19]} 26. Kg2 {[%clk 0:02:22]}  Nf6 {[%clk 0:00:58]} 27. Qd3 {[%clk 0:02:16]}  Qxd3 {[%clk 0:00:51]} 28. cxd3 {[%clk 0:02:17]}  Bb4 {[%clk 0:00:51]} 29. Kf2 {[%clk 0:02:13]}  Nd7 {[%clk 0:00:51]} 30. d4 {[%clk 0:02:08]}  f6 {[%clk 0:00:44]} 31. Ke3 {[%clk 0:02:07]}  b5 {[%clk 0:00:36]} 32. Nd2 {[%clk 0:02:03]}  bxa4 {[%clk 0:00:35]} 33. bxa4 {[%clk 0:02:02]}  Nb6 {[%clk 0:00:35]} 34. e5 {[%clk 0:01:59]}  Nxa4 {[%clk 0:00:32]} 35. Ba1 {[%clk 0:01:59]}  fxe5 {[%clk 0:00:24]} 36. fxe5 {[%clk 0:01:55]}  Nc3 {[%clk 0:00:24]} 37. Bxc6 {[%clk 0:01:51]}  Nd5+ {[%clk 0:00:24]} 38. Ke2 {[%clk 0:01:45]}  Kf7 {[%clk 0:00:19]} 39. Nc4 {[%clk 0:01:40]}  Ke7 {[%clk 0:00:16]} 40. Bb2 {[%clk 0:01:31]}  Nc3+ {[%clk 0:00:16]} 41. Bxc3 {[%clk 0:01:30]}  Bxc3 {[%clk 0:00:16]} 42. Ke3 {[%clk 0:01:30]}  Bc2 {[%clk 0:00:14]} 43. Nb6 {[%clk 0:01:26]}  g5 {[%clk 0:00:09]} 44. Ba4 {[%clk 0:01:25]}  Bf5 {[%clk 0:00:08]} 45. Nc4 {[%clk 0:01:21]}  Bb4 {[%clk 0:00:07]} 46. Nd2 {[%clk 0:01:17]}  Ba3 {[%clk 0:00:05]} 47. Nc4 {[%clk 0:01:07]}  Bc1+ {[%clk 0:00:05]} 48. Ke2 {[%clk 0:01:06]}  Bg4+ {[%clk 0:00:04]} 49. Kf2 {[%clk 0:01:04]}  h5 {[%clk 0:00:04]} 50. Nxa5 {[%clk 0:01:04]}  Bb2 {[%clk 0:00:04]} 51. Nc6+ {[%clk 0:00:45]}  Kf7 {[%clk 0:00:05]} 52. Bc2 {[%clk 0:00:40]}  h4 {[%clk 0:00:05]} 53. Be4 {[%clk 0:00:37]}  h3 {[%clk 0:00:05]} 54. Bf3 {[%clk 0:00:35]}  Bf5 {[%clk 0:00:05]} 55. g4 {[%clk 0:00:35]}  Bd3 {[%clk 0:00:04]} 56. Ke3 {[%clk 0:00:26]}  Bb5 {[%clk 0:00:03]} 57. Nb4 {[%clk 0:00:25]}  Bc1+ {[%clk 0:00:04]} 58. Kf2 {[%clk 0:00:24]}  Bf4 {[%clk 0:00:04]} 59. Be2 {[%clk 0:00:20]}  Ba4 {[%clk 0:00:02]} 60. Bf1 {[%clk 0:00:19]}  Bxh2 {[%clk 0:00:02]} 61. Bxh3 {[%clk 0:00:19]}  Bf4 {[%clk 0:00:02]} 62. Nd3 {[%clk 0:00:19]}  Bd2 {[%clk 0:00:02]} 63. Nc5 {[%clk 0:00:19]}  Bb5 {[%clk 0:00:02]} 64. Bf1 {[%clk 0:00:18]}  Bc6 {[%clk 0:00:02]} 65. Bc4 {[%clk 0:00:18]}  Bc3 {[%clk 0:00:01]} 66. Nxe6 {[%clk 0:00:16]}  Ke7 {[%clk 0:00:02]} 67. Ke3 {[%clk 0:00:15]}  Bd7 {[%clk 0:00:02]} 68. Nxg5 {[%clk 0:00:14]}  Bxg4 {[%clk 0:00:03]} 69. Ne4 {[%clk 0:00:13]}  Bb2 {[%clk 0:00:01]} 70. Bb3 {[%clk 0:00:13]}  Bf5 {[%clk 0:00:02]} 71. Nc5 {[%clk 0:00:13]}  Ba3 {[%clk 0:00:01]} 72. Bc4 {[%clk 0:00:10]}  Bg6 {[%clk 0:00:02]} 73. Nb3 {[%clk 0:00:09]}  Bc2 {[%clk 0:00:02]} 74. Nd2 {[%clk 0:00:09]}  Bc1 {[%clk 0:00:02]} 75. Ke2 {[%clk 0:00:08]}  Bf5 {[%clk 0:00:01]} 76. Bd3 {[%clk 0:00:05]}  Bg4+ {[%clk 0:00:02]} 77. Ke3 {[%clk 0:00:06]}  Bh5 {[%clk 0:00:02]} 78. Be2 {[%clk 0:00:06]}  Bg6 {[%clk 0:00:02]} 79. d5 {[%clk 0:00:05]}  Bb2 {[%clk 0:00:01]} 80. Nf3 {[%clk 0:00:04]}  Bc1+ {[%clk 0:00:02]} 81. Kd4 {[%clk 0:00:04]}  Bb2+ {[%clk 0:00:02]} 82. Kc4 {[%clk 0:00:04]}  Be4 {[%clk 0:00:02]} 83. d6+ {[%clk 0:00:04]}  Kd7 {[%clk 0:00:02]} 84. Nd4 {[%clk 0:00:03]}  Bg6 {[%clk 0:00:01]} 85. Bg4+ {[%clk 0:00:03]}  Ke8 {[%clk 0:00:01]} 86. e6 {[%clk 0:00:04]}  Ba3 {[%clk 0:00:01]} 87. Kd5 {[%clk 0:00:04]} 1-0


[Site "https://www.chess.com"]

[Event "Titled Tuesday Blitz August 31 2021"]
[White "Pires, Marcos Vinicius Torsani"]
[Black "Ozen, Bahadir"]
[WhiteFideId "2118939"]
[BlackFideId "6337058"]
[WhiteElo "2273"]
[BlackElo "2503"]
[Result "0-1"]
[Round "09"]
[TimeControl "180+1"]
[Date "2021.08.31"]
[WhiteClock "0:00:18"]
[BlackClock "0:00:15"]

1. e4 {[%clk 0:03:00]}  b6 {[%clk 0:03:00]} 2. d4 {[%clk 0:03:00]}  Bb7 {[%clk 0:03:00]} 3. Bd3 {[%clk 0:02:56]}  d6 {[%clk 0:03:00]} 4. Nf3 {[%clk 0:02:55]}  Nd7 {[%clk 0:03:00]} 5. O-O {[%clk 0:02:53]}  e5 {[%clk 0:03:00]} 6. d5 {[%clk 0:02:50]}  Ngf6 {[%clk 0:02:56]} 7. c4 {[%clk 0:02:48]}  a5 {[%clk 0:02:55]} 8. Nc3 {[%clk 0:02:48]}  g6 {[%clk 0:02:53]} 9. a3 {[%clk 0:02:45]}  h5 {[%clk 0:02:41]} 10. Rb1 {[%clk 0:02:42]}  Bh6 {[%clk 0:02:40]} 11. b4 {[%clk 0:02:36]}  axb4 {[%clk 0:02:39]} 12. axb4 {[%clk 0:02:37]}  Kf8 {[%clk 0:02:36]} 13. Nd2 {[%clk 0:02:23]}  h4 {[%clk 0:02:33]} 14. Nb3 {[%clk 0:02:13]}  Bc8 {[%clk 0:02:29]} 15. c5 {[%clk 0:02:11]}  bxc5 {[%clk 0:02:28]} 16. bxc5 {[%clk 0:02:12]}  Nh5 {[%clk 0:02:04]} 17. Ne2 {[%clk 0:01:52]}  Ndf6 {[%clk 0:02:00]} 18. cxd6 {[%clk 0:01:42]}  cxd6 {[%clk 0:02:01]} 19. Bxh6+ {[%clk 0:01:38]}  Rxh6 {[%clk 0:02:01]} 20. Qc1 {[%clk 0:01:38]}  Kg7 {[%clk 0:02:02]} 21. Qc6 {[%clk 0:01:29]}  Ra7 {[%clk 0:01:48]} 22. Nd2 {[%clk 0:01:23]}  Ra3 {[%clk 0:01:28]} 23. Rb3 {[%clk 0:01:01]}  Rxb3 {[%clk 0:01:24]} 24. Nxb3 {[%clk 0:01:02]}  Rh8 {[%clk 0:01:12]} 25. Rc1 {[%clk 0:01:01]}  Nf4 {[%clk 0:01:01]} 26. Nxf4 {[%clk 0:01:00]}  exf4 {[%clk 0:01:01]} 27. Nd4 {[%clk 0:00:49]}  h3 {[%clk 0:01:01]} 28. g3 {[%clk 0:00:48]}  fxg3 {[%clk 0:01:02]} 29. fxg3 {[%clk 0:00:48]}  Ng4 {[%clk 0:01:02]} 30. Nf3 {[%clk 0:00:44]}  Re8 {[%clk 0:00:49]} 31. Qc3+ {[%clk 0:00:42]}  Kg8 {[%clk 0:00:39]} 32. Qd4 {[%clk 0:00:43]}  Ne5 {[%clk 0:00:37]} 33. Nxe5 {[%clk 0:00:41]}  Rxe5 {[%clk 0:00:38]} 34. Rc6 {[%clk 0:00:35]}  Bg4 {[%clk 0:00:28]} 35. Qb4 {[%clk 0:00:24]}  Qg5 {[%clk 0:00:25]} 36. Qe1 {[%clk 0:00:23]}  Qe7 {[%clk 0:00:17]} 37. Qf2 {[%clk 0:00:18]}  Bd7 {[%clk 0:00:16]} 38. Rc7 {[%clk 0:00:17]}  Qd8 {[%clk 0:00:16]} 39. Qa7 {[%clk 0:00:16]}  Be8 {[%clk 0:00:13]} 40. Rb7 {[%clk 0:00:14]}  Qg5 {[%clk 0:00:13]} 41. Qf2 {[%clk 0:00:13]}  Qc1+ {[%clk 0:00:13]} 42. Bf1 {[%clk 0:00:13]}  Rxe4 {[%clk 0:00:13]} 43. Rb8 {[%clk 0:00:11]}  Kg7 {[%clk 0:00:10]} 44. Qb2+ {[%clk 0:00:10]}  Qxb2 {[%clk 0:00:10]} 45. Rxb2 {[%clk 0:00:11]}  Rd4 {[%clk 0:00:10]} 46. Bxh3 {[%clk 0:00:11]}  Rxd5 {[%clk 0:00:10]} 47. Rb8 {[%clk 0:00:12]}  Bc6 {[%clk 0:00:10]} 48. Rb6 {[%clk 0:00:12]}  Rc5 {[%clk 0:00:09]} 49. Bg2 {[%clk 0:00:12]}  Rc1+ {[%clk 0:00:09]} 50. Kf2 {[%clk 0:00:12]}  Rc2+ {[%clk 0:00:09]} 51. Kf1 {[%clk 0:00:12]}  Bxg2+ {[%clk 0:00:10]} 52. Kg1 {[%clk 0:00:12]}  d5 {[%clk 0:00:09]} 53. Rd6 {[%clk 0:00:10]}  Be4 {[%clk 0:00:10]} 54. Kf1 {[%clk 0:00:10]}  Rxh2 {[%clk 0:00:09]} 55. g4 {[%clk 0:00:10]}  Rh4 {[%clk 0:00:09]} 56. g5 {[%clk 0:00:11]}  Rg4 {[%clk 0:00:09]} 57. Kf2 {[%clk 0:00:12]}  Rxg5 {[%clk 0:00:09]} 58. Ke3 {[%clk 0:00:13]}  Rf5 {[%clk 0:00:10]} 59. Kd4 {[%clk 0:00:14]}  Rf6 {[%clk 0:00:10]} 60. Rd8 {[%clk 0:00:14]}  g5 {[%clk 0:00:11]} 61. Rb8 {[%clk 0:00:14]}  Rg6 {[%clk 0:00:11]} 62. Rb2 {[%clk 0:00:15]}  g4 {[%clk 0:00:12]} 63. Rd2 {[%clk 0:00:16]}  g3 {[%clk 0:00:13]} 64. Rd1 {[%clk 0:00:15]}  g2 {[%clk 0:00:13]} 65. Rg1 {[%clk 0:00:16]}  Kh6 {[%clk 0:00:14]} 66. Ke3 {[%clk 0:00:17]}  Kh5 {[%clk 0:00:14]} 67. Kf2 {[%clk 0:00:18]}  Kh4 {[%clk 0:00:14]} 68. Ke3 {[%clk 0:00:18]}  Kg3 {[%clk 0:00:14]} 69. Ke2 {[%clk 0:00:18]}  Bf3+ {[%clk 0:00:14]} 70. Ke3 {[%clk 0:00:18]}  f5 {[%clk 0:00:15]} 71. Rd1 {[%clk 0:00:18]}  f4+ {[%clk 0:00:16]} 72. Kd2 {[%clk 0:00:17]}  Bxd1 {[%clk 0:00:16]} 73. Kxd1 {[%clk 0:00:18]}  g1=N {[%clk 0:00:15]} 0-1


[Site "https://www.chess.com"]

[Event "Titled Tuesday Blitz August 31 2021"]
[White "Postny, Evgeny"]
[Black "Perez Gormaz, Matias"]
[WhiteFideId "2804344"]
[BlackFideId "3406342"]
[WhiteElo "2521"]
[BlackElo "2352"]
[Result "0-1"]
[Round "09"]
[TimeControl "180+1"]
[Date "2021.08.31"]
[WhiteClock "0:01:30"]
[BlackClock "0:01:17"]

1. e4 {[%clk 0:03:00]}  c5 {[%clk 0:02:58]} 2. Nf3 {[%clk 0:03:00]}  d6 {[%clk 0:02:57]} 3. d4 {[%clk 0:03:00]}  cxd4 {[%clk 0:02:58]} 4. Nxd4 {[%clk 0:03:01]}  Nf6 {[%clk 0:02:58]} 5. Nc3 {[%clk 0:03:01]}  a6 {[%clk 0:02:58]} 6. h4 {[%clk 0:03:00]}  e5 {[%clk 0:02:49]} 7. Nb3 {[%clk 0:03:00]}  Be6 {[%clk 0:02:44]} 8. Bg5 {[%clk 0:02:58]}  Nbd7 {[%clk 0:02:45]} 9. Be2 {[%clk 0:02:55]}  h6 {[%clk 0:02:41]} 10. Be3 {[%clk 0:02:54]}  Rc8 {[%clk 0:02:38]} 11. g4 {[%clk 0:02:52]}  Rxc3 {[%clk 0:02:33]} 12. bxc3 {[%clk 0:02:51]}  Qc7 {[%clk 0:02:33]} 13. f3 {[%clk 0:02:42]}  d5 {[%clk 0:02:29]} 14. exd5 {[%clk 0:02:32]}  Nxd5 {[%clk 0:02:28]} 15. Qd2 {[%clk 0:02:28]}  Nxc3 {[%clk 0:02:17]} 16. O-O {[%clk 0:02:20]}  Be7 {[%clk 0:02:07]} 17. Bd3 {[%clk 0:01:53]}  Bxh4 {[%clk 0:01:51]} 18. Nc5 {[%clk 0:01:52]}  Nxc5 {[%clk 0:01:41]} 19. Qxc3 {[%clk 0:01:52]}  Be7 {[%clk 0:01:42]} 20. Bc4 {[%clk 0:01:44]}  Nd7 {[%clk 0:01:23]} 21. Rfd1 {[%clk 0:01:34]}  Qxc4 {[%clk 0:01:21]} 22. Qb2 {[%clk 0:01:30]}  Qc6 {[%clk 0:01:17]} 0-1


[Site "https://www.chess.com"]

[Event "Titled Tuesday Blitz August 31 2021"]
[White "Romanchuk, Viktor"]
[Black "Qashashvili, Alexandre"]
[WhiteFideId "14109271"]
[BlackFideId "13600842"]
[WhiteElo "2242"]
[BlackElo "2316"]
[Result "1-0"]
[Round "09"]
[TimeControl "180+1"]
[Date "2021.08.31"]
[WhiteClock "0:00:24"]
[BlackClock "0:01:01"]

1. d4 {[%clk 0:03:00]}  d5 {[%clk 0:02:59]} 2. c4 {[%clk 0:02:55]}  c6 {[%clk 0:02:59]} 3. Nc3 {[%clk 0:02:54]}  Nf6 {[%clk 0:02:58]} 4. e3 {[%clk 0:02:54]}  Bf5 {[%clk 0:02:57]} 5. cxd5 {[%clk 0:02:53]}  Nxd5 {[%clk 0:02:56]} 6. Nge2 {[%clk 0:02:53]}  e6 {[%clk 0:02:55]} 7. Ng3 {[%clk 0:02:52]}  Bg6 {[%clk 0:02:55]} 8. e4 {[%clk 0:02:51]}  Nxc3 {[%clk 0:02:55]} 9. bxc3 {[%clk 0:02:52]}  Bd6 {[%clk 0:02:53]} 10. Bd3 {[%clk 0:02:50]}  O-O {[%clk 0:02:51]} 11. O-O {[%clk 0:02:50]}  Nd7 {[%clk 0:02:51]} 12. f4 {[%clk 0:02:49]}  f5 {[%clk 0:02:47]} 13. Qb3 {[%clk 0:02:46]}  Bf7 {[%clk 0:02:29]} 14. Qxb7 {[%clk 0:02:40]}  fxe4 {[%clk 0:02:28]} 15. Nxe4 {[%clk 0:02:38]}  Be7 {[%clk 0:02:28]} 16. Qxc6 {[%clk 0:02:21]}  Rc8 {[%clk 0:02:27]} 17. Qa6 {[%clk 0:02:18]}  Qb6 {[%clk 0:02:23]} 18. Qxb6 {[%clk 0:02:17]}  Nxb6 {[%clk 0:02:22]} 19. Rb1 {[%clk 0:02:10]}  Bg6 {[%clk 0:02:15]} 20. Rf3 {[%clk 0:01:58]}  Nc4 {[%clk 0:02:02]} 21. Rb7 {[%clk 0:01:51]}  Rf7 {[%clk 0:01:56]} 22. Rxa7 {[%clk 0:01:44]}  Rb8 {[%clk 0:01:35]} 23. f5 {[%clk 0:00:49]}  Bxf5 {[%clk 0:01:23]} 24. Bxc4 {[%clk 0:00:48]}  Bxe4 {[%clk 0:01:19]} 25. Bxe6 {[%clk 0:00:47]}  Bxf3 {[%clk 0:01:19]} 26. Rxe7 {[%clk 0:00:45]}  Rb1 {[%clk 0:01:12]} 27. Bxf7+ {[%clk 0:00:35]}  Kf8 {[%clk 0:01:11]} 28. Re1 {[%clk 0:00:35]}  Bc6 {[%clk 0:01:02]} 29. Ba3+ {[%clk 0:00:33]}  Kxf7 {[%clk 0:01:02]} 30. Rxb1 {[%clk 0:00:32]}  Be4 {[%clk 0:01:02]} 31. Rb6 {[%clk 0:00:28]}  Bd5 {[%clk 0:01:01]} 32. Rb2 {[%clk 0:00:24]} 1-0


[Site "https://www.chess.com"]

[Event "Titled Tuesday Blitz August 31 2021"]
[White "Shimelkov, Vasiliy"]
[Black "Ovchinnikov, Vsevolod"]
[WhiteFideId "13701630"]
[BlackFideId "24176842"]
[WhiteElo "2073"]
[BlackElo "2376"]
[Result "1-0"]
[Round "09"]
[TimeControl "180+1"]
[Date "2021.08.31"]
[WhiteClock "0:00:27"]
[BlackClock "0:00:02"]

1. d4 {[%clk 0:03:00]}  Nf6 {[%clk 0:02:59]} 2. Nf3 {[%clk 0:03:00]}  g6 {[%clk 0:02:59]} 3. c4 {[%clk 0:02:59]}  Bg7 {[%clk 0:02:59]} 4. Nc3 {[%clk 0:02:58]}  d5 {[%clk 0:03:00]} 5. cxd5 {[%clk 0:02:56]}  Nxd5 {[%clk 0:03:01]} 6. e3 {[%clk 0:02:56]}  O-O {[%clk 0:03:01]} 7. Bc4 {[%clk 0:02:54]}  Nb6 {[%clk 0:03:01]} 8. Bb3 {[%clk 0:02:53]}  N8d7 {[%clk 0:02:54]} 9. O-O {[%clk 0:02:51]}  c5 {[%clk 0:02:54]} 10. h3 {[%clk 0:02:49]}  cxd4 {[%clk 0:02:35]} 11. exd4 {[%clk 0:02:47]}  Nf6 {[%clk 0:02:36]} 12. Bg5 {[%clk 0:02:41]}  Bd7 {[%clk 0:02:35]} 13. Re1 {[%clk 0:02:37]}  h6 {[%clk 0:02:32]} 14. Bh4 {[%clk 0:02:34]}  g5 {[%clk 0:02:25]} 15. Bg3 {[%clk 0:02:32]}  Rc8 {[%clk 0:02:23]} 16. Rc1 {[%clk 0:02:29]}  Bf5 {[%clk 0:02:15]} 17. Ne5 {[%clk 0:02:25]}  e6 {[%clk 0:02:09]} 18. Qd2 {[%clk 0:02:23]}  a6 {[%clk 0:02:01]} 19. Red1 {[%clk 0:02:10]}  Ne4 {[%clk 0:01:43]} 20. Nxe4 {[%clk 0:02:07]}  Bxe4 {[%clk 0:01:44]} 21. Qe3 {[%clk 0:02:03]}  Bd5 {[%clk 0:01:42]} 22. Rc5 {[%clk 0:01:56]}  Qe7 {[%clk 0:01:03]} 23. Bxd5 {[%clk 0:01:50]}  Nxd5 {[%clk 0:01:03]} 24. Qb3 {[%clk 0:01:50]}  Rxc5 {[%clk 0:00:53]} 25. dxc5 {[%clk 0:01:48]}  Rc8 {[%clk 0:00:53]} 26. Nd3 {[%clk 0:01:46]}  Qd7 {[%clk 0:00:37]} 27. Qc2 {[%clk 0:01:40]}  b6 {[%clk 0:00:29]} 28. b4 {[%clk 0:01:39]}  a5 {[%clk 0:00:22]} 29. a3 {[%clk 0:01:36]}  axb4 {[%clk 0:00:22]} 30. axb4 {[%clk 0:01:34]}  Qb5 {[%clk 0:00:22]} 31. Rb1 {[%clk 0:01:31]}  Nc3 {[%clk 0:00:18]} 32. Rb3 {[%clk 0:01:29]}  Nd5 {[%clk 0:00:13]} 33. Bd6 {[%clk 0:01:22]}  Qd7 {[%clk 0:00:10]} 34. Qe2 {[%clk 0:01:13]}  Qa4 {[%clk 0:00:10]} 35. Qc2 {[%clk 0:01:10]}  Bf6 {[%clk 0:00:07]} 36. h4 {[%clk 0:01:03]}  gxh4 {[%clk 0:00:07]} 37. Nf4 {[%clk 0:01:01]}  Qa1+ {[%clk 0:00:04]} 38. Rb1 {[%clk 0:00:58]}  Qc3 {[%clk 0:00:04]} 39. Qe2 {[%clk 0:00:53]}  bxc5 {[%clk 0:00:03]} 40. Nxd5 {[%clk 0:00:48]}  exd5 {[%clk 0:00:02]} 41. Qg4+ {[%clk 0:00:47]}  Kh7 {[%clk 0:00:02]} 42. Qxc8 {[%clk 0:00:42]}  Qd3 {[%clk 0:00:03]} 43. Rf1 {[%clk 0:00:39]}  cxb4 {[%clk 0:00:02]} 44. Bxb4 {[%clk 0:00:37]}  d4 {[%clk 0:00:03]} 45. Qd7 {[%clk 0:00:35]}  Kg6 {[%clk 0:00:03]} 46. Qd5 {[%clk 0:00:31]}  Qe2 {[%clk 0:00:02]} 47. Qf3 {[%clk 0:00:27]} 1-0


[Site "https://www.chess.com"]

[Event "Titled Tuesday Blitz August 31 2021"]
[White "Shubenkova, Veronika"]
[Black "Weetik, Vjacheslav"]
[WhiteFideId "44124040"]
[BlackFideId "4153472"]
[WhiteElo "1882"]
[BlackElo "2469"]
[Result "0-1"]
[Round "09"]
[TimeControl "180+1"]
[Date "2021.08.31"]
[WhiteClock "0:00:04"]
[BlackClock "0:00:04"]

1. e4 {[%clk 0:02:58]}  c6 {[%clk 0:02:58]} 2. d4 {[%clk 0:02:58]}  d5 {[%clk 0:02:57]} 3. exd5 {[%clk 0:02:58]}  cxd5 {[%clk 0:02:57]} 4. Nf3 {[%clk 0:02:59]}  Nc6 {[%clk 0:02:57]} 5. c3 {[%clk 0:02:58]}  Bg4 {[%clk 0:02:57]} 6. Be2 {[%clk 0:02:57]}  e6 {[%clk 0:02:57]} 7. O-O {[%clk 0:02:57]}  Bd6 {[%clk 0:02:56]} 8. Nbd2 {[%clk 0:02:57]}  Nf6 {[%clk 0:02:55]} 9. Re1 {[%clk 0:02:57]}  Qc7 {[%clk 0:02:54]} 10. b3 {[%clk 0:02:56]}  Ne4 {[%clk 0:02:44]} 11. Bb2 {[%clk 0:02:53]}  Nxd2 {[%clk 0:02:37]} 12. Qxd2 {[%clk 0:02:53]}  Bxf3 {[%clk 0:02:37]} 13. Bxf3 {[%clk 0:02:52]}  Bxh2+ {[%clk 0:02:37]} 14. Kf1 {[%clk 0:02:52]}  Bf4 {[%clk 0:02:34]} 15. Qd3 {[%clk 0:02:47]}  O-O {[%clk 0:02:31]} 16. g3 {[%clk 0:02:39]}  Bd6 {[%clk 0:02:25]} 17. Kg2 {[%clk 0:02:39]}  Rfe8 {[%clk 0:02:00]} 18. Rh1 {[%clk 0:02:36]}  h6 {[%clk 0:01:47]} 19. Rh5 {[%clk 0:02:32]}  Rad8 {[%clk 0:01:40]} 20. Rah1 {[%clk 0:02:25]}  Bf8 {[%clk 0:01:40]} 21. Bc1 {[%clk 0:02:10]}  e5 {[%clk 0:01:37]} 22. Qd1 {[%clk 0:01:48]}  Re6 {[%clk 0:01:05]} 23. dxe5 {[%clk 0:01:40]}  Rxe5 {[%clk 0:00:59]} 24. Bf4 {[%clk 0:01:38]}  g6 {[%clk 0:00:43]} 25. Bxe5 {[%clk 0:01:33]}  Nxe5 {[%clk 0:00:43]} 26. R5h4 {[%clk 0:01:29]}  Qxc3 {[%clk 0:00:39]} 27. Bxd5 {[%clk 0:01:16]}  h5 {[%clk 0:00:38]} 28. Rd4 {[%clk 0:01:01]}  Kg7 {[%clk 0:00:32]} 29. Re1 {[%clk 0:00:53]}  Bc5 {[%clk 0:00:31]} 30. Rf4 {[%clk 0:00:45]}  Rd7 {[%clk 0:00:15]} 31. b4 {[%clk 0:00:40]}  Bb6 {[%clk 0:00:14]} 32. a4 {[%clk 0:00:23]}  Ng4 {[%clk 0:00:11]} 33. Rf3 {[%clk 0:00:23]}  Qxb4 {[%clk 0:00:09]} 34. Qa1+ {[%clk 0:00:22]}  Bd4 {[%clk 0:00:07]} 35. Qa2 {[%clk 0:00:21]}  Qxe1 {[%clk 0:00:07]} 36. Bxf7 {[%clk 0:00:20]}  Nxf2 {[%clk 0:00:06]} 37. g4 {[%clk 0:00:07]}  Qh1+ {[%clk 0:00:05]} 38. Kg3 {[%clk 0:00:07]}  Be5+ {[%clk 0:00:04]} 39. Kxf2 {[%clk 0:00:07]}  Qh2+ {[%clk 0:00:04]} 40. Ke3 {[%clk 0:00:07]}  Qg1+ {[%clk 0:00:04]} 41. Rf2 {[%clk 0:00:03]}  Bd4+ {[%clk 0:00:04]} 42. Ke4 {[%clk 0:00:04]}  Qxf2 {[%clk 0:00:04]} 0-1


[Site "https://www.chess.com"]